bitfinex/quotes_BTCUSD_20220304
["timestamp","ask_amount","ask_price","bid_price","bid_amount"]
[1646409829405,0.123154,40642.0,40631.0,0.01361318]
[1646409829908,0.061577,40641.0,40638.0,0.25859021]
[1646409830106,0.003,40649.0,40640.0,0.01121549]
[1646409830307,0.123127,40647.0,40640.0,0.01121549]
[1646409830506,0.870327,40647.0,40640.0,0.01121549]
[1646409830707,0.123127,40647.0,40636.0,0.061568]
[1646409830907,0.123127,40647.0,40638.0,0.01236761]
[1646409831107,0.123127,40647.0,40637.0,0.05]
[1646409831356,0.123127,40647.0,40634.0,0.06011386]
[1646409831560,0.870327,40647.0,40634.0,0.06011386]
[1646409831756,0.20892653,40641.0,40634.0,0.01011386]
[1646409831959,0.15908619,40639.0,40631.0,0.01432135]
[1646409832356,0.808775,40640.0,40631.0,0.01432135]
[1646409832763,0.808775,40640.0,40632.0,0.30463144]
[1646409833160,0.003,40644.0,40633.0,0.06157183]
[1646409833357,0.17227305,40642.0,40632.0,0.40463144]
[1646409834357,0.061577,40640.0,40632.0,0.40463144]
[1646409834558,0.061577,40640.0,40633.0,0.01073054]
[1646409835205,0.061577,40640.0,40632.0,0.40463144]
[1646409835404,0.061577,40640.0,40639.0,0.23911798]
[1646409835607,0.061577,40640.0,40630.0,0.12314179]
[1646409836208,0.061577,40640.0,40633.0,0.28139038]
[1646409836408,0.061577,40640.0,40630.0,0.12314179]
[1646409836811,0.061577,40640.0,40635.0,0.05]
[1646409837208,0.061577,40640.0,40633.0,0.06157263]
[1646409837608,0.061577,40640.0,40637.0,0.27442868]
[1646409837809,0.061577,40640.0,40637.0,0.32442868]
[1646409838009,0.061577,40640.0,40637.0,0.05]
[1646409838309,0.061577,40640.0,40628.0,0.05]
[1646409838510,0.06158,40635.0,40630.0,0.06157665]
[1646409838957,0.06158,40635.0,40630.0,0.31648846]
[1646409839357,0.06158,40635.0,40630.0,0.41648846]
[1646409839758,0.06158,40635.0,40632.0,0.00137214]
[1646409839962,0.36158,40635.0,40632.0,0.00137214]
[1646409840258,0.06158,40635.0,40632.0,0.00137214]
[1646409840458,0.21978009,40634.0,40632.0,0.00137214]
[1646409840859,0.46988008,40634.0,40632.0,0.00137214]
[1646409841259,0.06158,40635.0,40632.0,0.00137214]
[1646409841460,0.061569,40638.0,40632.0,0.00137214]
[1646409841665,0.126143,40641.0,40632.0,0.00137214]
[1646409841666,0.003,40641.0,40632.0,0.00137214]
[1646409842062,0.14991864,40652.0,40632.0,0.00137214]
[1646409842263,0.05,40649.0,40637.0,0.31470803]
[1646409842508,0.51148164,40654.0,40637.0,0.31470803]
[1646409842509,0.061551,40650.0,40639.0,0.06155935]
[1646409843109,0.061551,40650.0,40638.0,0.12311134]
[1646409843314,0.3,40649.0,40638.0,0.12311134]
[1646409843507,0.061551,40650.0,40638.0,0.12311134]
[1646409843710,0.361551,40650.0,40638.0,0.12311134]
[1646409843909,0.061551,40650.0,40638.0,0.12311134]
[1646409844108,0.061551,40650.0,40639.0,0.3]
[1646409844314,0.063546,40653.0,40645.0,0.51083564]
[1646409844610,0.063546,40653.0,40646.0,0.3]
[1646409844611,0.14,40649.0,40646.0,0.3]
[1646409844808,0.14,40647.0,40646.0,0.35]
[1646409845209,0.14,40647.0,40646.0,0.05]
[1646409845410,0.14,40647.0,40646.0,0.12308714]
[1646409845610,0.002,40651.0,40646.0,0.12308714]
[1646409845611,0.002,40651.0,40646.0,0.47308714]
[1646409845812,0.002,40651.0,40646.0,0.05]
[1646409846013,0.28117097,40655.0,40646.0,0.05]
[1646409846275,0.28117097,40655.0,40641.0,0.15]
[1646409846477,0.3,40657.0,40643.0,0.06155083]
[1646409846677,0.061555,40652.0,40639.0,0.36751984]
[1646409846879,0.061555,40652.0,40640.0,0.02454]
[1646409847078,0.5999,40660.0,40640.0,0.02454]
[1646409847278,0.2999,40660.0,40650.0,0.29826196]
[1646409847578,0.26263493,40655.0,40650.0,0.29826196]
[1646409847776,0.061546,40654.0,40650.0,0.34826196]
[1646409848178,0.123082,40661.0,40651.0,0.07242258]
[1646409848376,0.14991864,40663.0,40651.0,0.07242258]
[1646409848577,0.14991864,40663.0,40651.0,0.1]
[1646409848778,0.28718881,40666.0,40653.0,0.06153102]
[1646409848977,0.28531725,40663.0,40653.0,0.06145102]
[1646409849177,2.103872,40662.0,40651.0,0.12454]
[1646409849376,2.103872,40662.0,40633.0,0.184599]
[1646409849377,3.96230841,40650.0,40633.0,0.184599]
[1646409849585,0.3,40661.0,40629.0,0.01387862]
[1646409849586,0.4,40648.0,40629.0,0.01387862]
[1646409849778,0.4,40648.0,40627.0,0.02915983]
[1646409849779,0.7472,40643.0,40627.0,0.02915983]
[1646409850017,0.7472,40639.0,40614.0,0.4475262]
[1646409850214,1.4,40640.0,40610.0,0.20126127]
[1646409850215,0.27762147,40625.0,40610.0,0.20126127]
[1646409850412,0.27762147,40625.0,40608.0,0.20226127]
[1646409850413,0.3,40624.0,40608.0,0.20226127]
[1646409850618,0.3,40624.0,40608.0,0.001]
[1646409850619,1.0924,40624.0,40608.0,0.001]
[1646409850813,0.123232,40618.0,40608.0,0.001]
[1646409851012,0.7472,40615.0,40608.0,0.001]
[1646409851212,0.34802529,40610.0,40608.0,0.001]
[1646409851713,0.43831529,40610.0,40608.0,0.001]
[1646409852814,0.43831529,40610.0,40608.0,0.00079261]
[1646409853412,0.001,40609.0,40608.0,0.00079261]
[1646409854056,0.001,40609.0,40592.0,0.20126127]
[1646409854057,0.27449332,40601.0,40592.0,0.20126127]
[1646409854257,0.695,40600.0,40593.0,0.03848668]
[1646409854661,0.22628166,40598.0,40593.0,0.03848668]
[1646409854857,0.003,40606.0,40600.0,0.31198343]
[1646409855357,0.0452,40605.0,40600.0,0.31198343]
[1646409855655,0.106825,40605.0,40600.0,0.31198343]
[1646409855857,0.106825,40605.0,40601.0,0.3]
[1646409855858,0.0452,40605.0,40601.0,0.3]
[1646409856455,0.0452,40605.0,40600.0,0.36198343]
[1646409856654,0.106819,40605.0,40600.0,0.36198343]
[1646409857054,0.106819,40605.0,40600.0,0.31198343]
[1646409857257,0.20782534,40604.0,40600.0,0.31198343]
[1646409857510,0.0452,40604.0,40600.0,0.31198343]
[1646409858011,0.106828,40604.0,40600.0,0.31198343]
[1646409858210,0.23139469,40602.0,40600.0,0.36198343]
[1646409859011,0.29301769,40602.0,40600.0,0.36198343]
[1646409859416,0.5444061,40602.0,40600.0,0.31198343]
[1646409859611,0.33821769,40602.0,40600.0,0.31198343]
[1646409860211,1.05,40601.0,40593.0,0.03848668]
[1646409860414,0.061643,40599.0,40593.0,0.03848668]
[1646409860613,0.21494934,40594.0,40593.0,0.03848668]
[1646409860812,0.123278,40597.0,40593.0,0.03848668]
[1646409860813,0.168478,40597.0,40593.0,0.03848668]
[1646409861016,0.003,40604.0,40593.0,0.03848668]
[1646409861017,0.0452,40602.0,40593.0,0.03848668]
[1646409861269,0.003,40604.0,40595.0,0.15]
[1646409861465,0.003,40604.0,40593.0,0.03848668]
[1646409861666,0.003,40604.0,40594.0,0.3]
[1646409862069,0.44093922,40609.0,40598.0,0.05755685]
[1646409862070,0.123259,40605.0,40598.0,0.05755685]
[1646409862271,0.185895,40609.0,40600.0,0.02454]
[1646409862272,0.001,40609.0,40600.0,0.02454]
[1646409862866,0.27372286,40608.0,40601.0,0.02454]
[1646409863068,0.001,40609.0,40602.0,0.31351618]
[1646409863466,0.001,40609.0,40604.0,0.16219828]
[1646409863667,0.001,40609.0,40602.0,0.36351618]
[1646409863868,0.001,40609.0,40603.0,0.3]
[1646409864268,0.001,40609.0,40605.0,0.27486008]
[1646409864472,0.001,40609.0,40606.0,0.3]
[1646409864669,0.001,40609.0,40605.0,0.05]
[1646409864870,0.001,40609.0,40606.0,0.3]
[1646409865111,0.001,40609.0,40602.0,0.36351618]
[1646409865511,0.001,40609.0,40593.0,0.03848668]
[1646409865709,0.23508205,40603.0,40593.0,0.03848668]
[1646409865910,0.0462,40609.0,40593.0,0.03848668]
[1646409866309,0.0462,40609.0,40597.0,0.05714478]
[1646409866510,0.0462,40609.0,40603.0,0.25332523]
[1646409866708,0.0462,40609.0,40603.0,0.30332523]
[1646409867110,0.0462,40609.0,40603.0,0.05]
[1646409867509,0.0462,40609.0,40593.0,0.06302668]
[1646409867713,0.118248,40608.0,40593.0,0.06302668]
[1646409867912,0.001,40609.0,40595.0,0.02454]
[1646409868111,0.001,40609.0,40597.0,0.0676735]
[1646409868112,0.2761155,40604.0,40597.0,0.0676735]
[1646409868411,0.001,40609.0,40596.0,0.31508289]
[1646409868610,0.001,40609.0,40596.0,0.33962289]
[1646409868857,0.001,40609.0,40596.0,0.38962289]
[1646409869059,0.062617,40609.0,40596.0,0.31508289]
[1646409870060,0.2704421,40606.0,40597.0,0.21524034]
[1646409870261,0.062617,40609.0,40597.0,0.26524034]
[1646409870458,0.062617,40609.0,40603.0,0.26855006]
[1646409870659,0.001,40609.0,40603.0,0.26855006]
[1646409870860,0.001,40609.0,40603.0,0.31855006]
[1646409871458,0.001,40609.0,40593.0,0.03848668]
[1646409871660,0.001,40609.0,40597.0,0.20359373]
[1646409871661,0.06162,40607.0,40597.0,0.20359373]
[1646409871858,0.06162,40607.0,40593.0,0.03848668]
[1646409872509,0.22996036,40603.0,40597.0,0.31857575]
[1646409872709,0.06162,40607.0,40597.0,0.5839474]
[1646409873110,0.123237,40607.0,40597.0,0.5839474]
[1646409873316,0.001,40609.0,40598.0,0.3]
[1646409873513,0.001,40609.0,40599.0,0.02454]
[1646409873711,0.001,40609.0,40608.0,0.29465327]
[1646409873910,0.001,40609.0,40608.0,0.59465327]
[1646409874112,0.001,40609.0,40608.0,0.34465327]
[1646409874811,0.001,40609.0,40600.0,0.3]
[1646409875010,0.001,40609.0,40602.0,0.06043944]
[1646409875209,0.001,40609.0,40603.0,0.3]
[1646409875415,0.001,40609.0,40608.0,0.16580924]
[1646409875611,0.001,40609.0,40608.0,0.2573504]
[1646409875813,0.001,40609.0,40608.0,0.5573504]
[1646409876012,0.001,40609.0,40608.0,0.6073504]
[1646409876257,0.001,40609.0,40608.0,0.3073504]
[1646409876458,0.001,40609.0,40608.0,0.58107428]
[1646409876657,0.001,40609.0,40608.0,0.3318904]
[1646409876858,0.001,40609.0,40608.0,0.05]
[1646409877060,0.001,40609.0,40604.0,0.004]
[1646409877061,0.151,40609.0,40604.0,0.004]
[1646409877258,0.001,40609.0,40604.0,0.004]
[1646409877658,0.001,40609.0,40593.0,0.03848668]
[1646409877659,0.28269265,40608.0,40593.0,0.002]
[1646409877860,0.27301601,40597.0,40593.0,0.002]
[1646409878064,0.061631,40598.0,40593.0,0.002]
[1646409878462,0.086171,40598.0,40593.0,0.002]
[1646409878662,0.28009195,40597.0,40593.0,0.002]
[1646409878862,0.38692595,40597.0,40593.0,0.002]
[1646409879461,0.6813312,40597.0,40593.0,0.0020853]
[1646409879662,0.38692595,40597.0,40593.0,0.0020853]
[1646409880113,0.061634,40597.0,40593.0,0.0020853]
[1646409880312,0.061631,40598.0,40593.0,0.0020853]
[1646409880912,0.065631,40598.0,40593.0,0.0020853]
[1646409881612,0.15,40596.0,40590.0,0.001]
[1646409881813,1.56869939,40597.0,40590.0,0.001]
[1646409881814,0.16869939,40597.0,40590.0,0.001]
[1646409882618,0.06164,40593.0,40590.0,0.001]
[1646409883766,0.064627,40601.0,40590.0,0.001]
[1646409884166,0.061627,40601.0,40590.0,0.001]
[1646409884566,0.20043046,40595.0,40590.0,0.001]
[1646409884768,0.2659078,40594.0,40590.0,0.001]
[1646409884973,0.45,40593.0,40590.0,0.001]
[1646409885166,0.2659078,40594.0,40590.0,0.001]
[1646409885366,0.1,40592.0,40590.0,0.001]
[1646409885566,0.3727498,40594.0,40590.0,0.001]
[1646409885971,0.3111078,40594.0,40590.0,0.001]
[1646409886167,0.106843,40594.0,40590.0,0.001]
[1646409888017,0.003,40598.0,40590.0,0.001]
[1646409888213,0.230125,40606.0,40590.0,0.001]
[1646409888619,0.423252,40605.0,40590.0,0.001]
[1646409888814,0.28926718,40602.0,40590.0,0.001]
[1646409889014,0.061632,40601.0,40590.0,0.001]
[1646409889413,0.21993058,40593.0,40590.0,0.001]
[1646409889617,0.061632,40601.0,40590.0,0.001]
[1646409890313,0.21884423,40598.0,40590.0,0.21820542]
[1646409890513,0.061632,40599.0,40590.0,0.001]
[1646409891120,0.061632,40599.0,40590.0,0.02554]
[1646409891376,0.003,40602.0,40600.0,0.25735309]
[1646409891571,0.003,40602.0,40600.0,0.30735309]
[1646409891771,0.003,40602.0,40600.0,0.38160985]
[1646409891973,0.003,40602.0,40600.0,0.30735309]
[1646409892170,0.051,40609.0,40600.0,0.30735309]
[1646409892171,0.001,40609.0,40600.0,0.30735309]
[1646409892372,0.061616,40608.0,40600.0,0.30735309]
[1646409892572,0.061616,40608.0,40600.0,0.05]
[1646409892771,0.061616,40608.0,40590.0,0.13426455]
[1646409892772,0.24441663,40603.0,40594.0,0.17198556]
[1646409892973,0.24441663,40603.0,40594.0,0.05]
[1646409893173,0.24441663,40603.0,40591.0,0.002]
[1646409893174,0.3,40602.0,40591.0,0.002]
[1646409893573,0.061625,40602.0,40594.0,0.32373445]
[1646409894575,0.25729748,40598.0,40594.0,0.37373445]
[1646409894775,0.25729748,40598.0,40594.0,0.05]
[1646409895037,0.3,40597.0,40591.0,0.002]
[1646409895236,0.18431275,40595.0,40591.0,0.002]
[1646409895836,0.28435512,40594.0,40591.0,0.002]
[1646409896237,0.061647,40593.0,40591.0,0.002]
[1646409896441,0.061647,40593.0,40585.0,0.01212835]
[1646409896636,0.061647,40593.0,40585.0,0.000717]
[1646409896836,0.001,40586.0,40585.0,0.000717]
[1646409897134,0.061647,40593.0,40587.0,0.002]
[1646409897537,0.123296,40593.0,40587.0,0.002]
[1646409898137,0.02454,40592.0,40583.0,0.001717]
[1646409898336,0.123296,40593.0,40581.0,0.07465092]
[1646409898337,0.061651,40590.0,40582.0,0.25437801]
[1646409898539,0.061651,40590.0,40582.0,0.35]
[1646409898767,0.061651,40590.0,40585.0,0.26581081]
[1646409898972,0.061651,40589.0,40583.0,0.05]
[1646409899169,0.061651,40589.0,40582.0,0.05]
[1646409899369,0.061651,40589.0,40582.0,0.3]
[1646409899570,0.061651,40590.0,40581.0,0.011]
[1646409899771,0.061651,40590.0,40586.0,0.05494712]
[1646409899971,0.123301,40590.0,40588.0,0.22937969]
[1646409900174,0.37201722,40590.0,40589.0,0.3]
[1646409900671,0.37201722,40590.0,40588.0,0.32937969]
[1646409900870,0.37201722,40590.0,40589.0,0.3]
[1646409901071,0.37201722,40590.0,40589.0,0.62718963]
[1646409901272,0.37201722,40590.0,40589.0,0.33975066]
[1646409901477,1.722e-05,40590.0,40589.0,0.77718963]
[1646409901671,1.722e-05,40590.0,40589.0,0.87718963]
[1646409901873,7.22e-06,40590.0,40589.0,1.12207978]
[1646409902072,0.001,40596.0,40589.0,1.12207978]
[1646409902073,0.001,40596.0,40591.0,5.278e-05]
[1646409902271,0.20649719,40612.0,40597.0,0.02454]
[1646409902518,0.123211,40618.0,40603.0,0.06436409]
[1646409902718,0.2499,40616.0,40604.0,0.35]
[1646409902917,0.02454,40615.0,40604.0,0.05]
[1646409903118,0.23423164,40607.0,40598.0,0.51573444]
[1646409903319,0.23423164,40607.0,40598.0,0.4]
[1646409903519,0.2499,40616.0,40605.0,0.24142709]
[1646409903721,0.2499,40616.0,40605.0,0.05]
[1646409903722,0.18175711,40606.0,40605.0,0.05]
[1646409903920,0.123232,40611.0,40605.0,0.05]
[1646409904224,0.123232,40611.0,40598.0,0.35]
[1646409904521,0.123232,40611.0,40599.0,0.26174699]
[1646409904721,0.2499,40616.0,40599.0,0.26174699]
[1646409904722,0.061611,40612.0,40602.0,0.15]
[1646409905023,0.246484,40625.0,40609.0,0.01082273]
[1646409905024,0.001,40614.0,40609.0,0.01082273]
[1646409905320,0.001,40614.0,40605.0,0.01197281]
[1646409905521,0.20638765,40613.0,40606.0,0.32903975]
[1646409905721,0.26799165,40613.0,40607.0,0.3]
[1646409905920,0.001,40614.0,40607.0,0.3]
[1646409906121,0.001,40614.0,40607.0,0.35]
[1646409906767,0.001,40614.0,40610.0,0.15]
[1646409906963,0.16148823,40614.0,40610.0,0.13383773]
[1646409907164,0.16148823,40614.0,40611.0,0.05]
[1646409907165,0.3,40613.0,40611.0,0.05]
[1646409907363,0.3,40613.0,40602.0,0.013732]
[1646409907364,0.0246442,40612.0,40602.0,0.013732]
[1646409907567,0.9,40613.0,40598.0,0.05890204]
[1646409907766,0.361604,40613.0,40598.0,0.02062868]
[1646409907964,0.21897588,40606.0,40599.0,0.01461152]
[1646409908168,0.001,40614.0,40598.0,0.20816351]
[1646409908365,0.3,40617.0,40598.0,0.03516232]
[1646409908766,0.061611,40609.0,40599.0,0.3]
[1646409909165,0.123225,40612.0,40599.0,0.3]
[1646409909166,0.22606585,40605.0,40599.0,0.3]
[1646409909369,0.44032121,40605.0,40599.0,0.4]
[1646409909585,0.22606585,40605.0,40599.0,0.1]
[1646409909767,0.28768185,40605.0,40591.0,5.278e-05]
[1646409910014,0.35742185,40605.0,40591.0,5.278e-05]
[1646409910215,0.06974,40605.0,40591.0,5.278e-05]
[1646409910414,0.0452,40605.0,40591.0,0.0119571]
[1646409910616,0.10683,40605.0,40591.0,5.278e-05]
[1646409910815,0.061632,40595.0,40591.0,5.278e-05]
[1646409911021,0.28907371,40596.0,40579.0,0.301]
[1646409911022,1.4,40592.0,40579.0,0.301]
[1646409911218,0.7472,40589.0,40579.0,0.001]
[1646409911420,0.3452,40588.0,40579.0,0.001]
[1646409911617,0.27334303,40584.0,40579.0,0.001]
[1646409911823,0.27334303,40584.0,40574.0,0.001]
[1646409911824,0.27334303,40584.0,40572.0,0.00225135]
[1646409911825,0.02454,40579.0,40572.0,0.00225135]
[1646409912024,0.77174,40572.0,40565.0,0.012]
[1646409912221,0.77174,40572.0,40559.0,0.002]
[1646409912222,0.7472,40566.0,40559.0,0.002]
[1646409912420,0.06974,40565.0,40559.0,0.002]
[1646409912618,0.0352,40568.0,40557.0,0.001]
[1646409912819,0.05,40576.0,40557.0,0.001]
[1646409912820,0.06167,40572.0,40557.0,0.001]
[1646409913018,0.06167,40572.0,40563.0,0.02454]
[1646409913019,0.001,40572.0,40563.0,0.02454]
[1646409913222,0.001,40572.0,40563.0,0.13530175]
[1646409913624,1.61678073,40571.0,40540.0,0.001]
[1646409913868,1.61678073,40571.0,40536.0,0.272686]
[1646409913869,1.61678073,40571.0,40542.0,0.20151553]
[1646409913870,0.565,40550.0,40542.0,0.20151553]
[1646409914068,1.4,40543.0,40530.0,0.25189441]
[1646409914268,1.2,40530.0,40520.0,0.12338197]
[1646409914466,1.4,40541.0,40518.0,0.5411348]
[1646409914467,0.07429696,40526.0,40518.0,0.5411348]
[1646409914671,0.08139,40533.0,40518.0,0.33953509]
[1646409914672,0.565,40519.0,40518.0,0.33953509]
[1646409914869,0.14,40519.0,40518.0,0.40897352]
[1646409915065,0.15,40531.0,40518.0,0.39897352]
[1646409915368,0.002,40536.0,40529.0,0.05630976]
[1646409915565,0.002,40536.0,40519.0,0.005]
[1646409915566,0.5452,40535.0,40519.0,0.005]
[1646409915766,0.002,40536.0,40531.0,0.07070204]
[1646409915964,0.002,40536.0,40531.0,0.39698392]
[1646409916166,0.0001,40536.0,40531.0,0.01551907]
[1646409916366,0.05,40547.0,40530.0,0.001]
[1646409916568,0.25476006,40532.0,40530.0,0.001]
[1646409916767,0.145,40546.0,40535.0,0.19676941]
[1646409916970,0.04961041,40557.0,40540.0,1.2]
[1646409916971,0.00441041,40557.0,40540.0,1.2]
[1646409917271,0.565,40574.0,40531.0,1.768614]
[1646409917272,0.4573,40568.0,40566.0,0.05470951]
[1646409917532,0.2341,40577.0,40566.0,0.05470951]
[1646409917533,0.2499,40578.0,40566.0,0.03970951]
[1646409917725,0.00111015,40593.0,40566.0,0.03970951]
[1646409917726,0.08119393,40569.0,40567.0,0.26170066]
[1646409917924,0.00111015,40593.0,40567.0,0.26170066]
[1646409917925,4.37642875,40595.0,40574.0,1.4]
[1646409918122,4.37642875,40595.0,40583.0,0.005]
[1646409918322,4.37642875,40595.0,40575.0,0.05539731]
[1646409918323,4.37642875,40595.0,40590.0,0.565]
[1646409918522,4.37642875,40595.0,40591.0,0.0452]
[1646409918722,0.00854436,40589.0,40587.0,0.1452]
[1646409918923,0.00854436,40589.0,40587.0,0.0452]
[1646409919522,0.00854436,40589.0,40587.0,0.0352]
[1646409920027,0.135,40588.0,40587.0,0.0352]
[1646409920223,0.00854436,40589.0,40587.0,0.0352]
[1646409920424,1.0,40605.0,40589.0,1.4]
[1646409920629,1.145,40614.0,40592.0,0.005]
[1646409920827,0.05,40615.0,40603.0,0.1]
[1646409921025,0.2494,40621.0,40604.0,0.0452]
[1646409921262,0.145,40623.0,40604.0,0.0452]
[1646409921263,0.145,40623.0,40604.0,0.36457499]
[1646409921463,0.145,40616.0,40604.0,0.0452]
[1646409921663,0.135,40612.0,40604.0,0.0452]
[1646409921965,0.00437933,40626.0,40605.0,1.654814]
[1646409922165,0.01279289,40650.0,40631.0,0.15631372]
[1646409922366,0.0039,40655.0,40634.0,0.00522194]
[1646409922570,0.14477806,40667.0,40644.0,0.00522194]
[1646409922571,0.50108933,40667.0,40644.0,0.00522194]
[1646409922774,0.05124429,40672.0,40663.0,0.30782982]
[1646409922965,0.4853,40677.0,40664.0,0.0452]
[1646409923166,0.14477806,40675.0,40664.0,0.0952]
[1646409923362,0.14477806,40671.0,40664.0,0.0952]
[1646409923565,0.15477806,40679.0,40665.0,0.3]
[1646409923865,0.15477806,40679.0,40665.0,0.05]
[1646409923866,0.31,40679.0,40665.0,0.05]
[1646409924067,0.14477806,40666.0,40665.0,0.05]
[1646409924266,0.19797937,40661.0,40641.0,0.22145348]
[1646409924465,0.15425413,40670.0,40641.0,0.22145348]
[1646409924466,0.19797937,40659.0,40656.0,0.05]
[1646409924662,0.19797937,40659.0,40641.0,0.31252454]
[1646409924663,0.14477806,40657.0,40645.0,0.0452]
[1646409924865,0.19797937,40657.0,40645.0,0.06883447]
[1646409925132,0.14477806,40657.0,40650.0,0.32826707]
[1646409925329,0.23454373,40664.0,40657.0,0.20293464]
[1646409925628,0.23454373,40664.0,40652.0,0.05]
[1646409926030,0.23454373,40664.0,40656.0,0.05272147]
[1646409926229,1.68887718,40679.0,40657.0,0.3]
[1646409926429,1.68887718,40679.0,40650.0,0.1]
[1646409926430,0.05,40675.0,40651.0,0.67383594]
[1646409926631,0.01,40679.0,40666.0,0.23756583]
[1646409926831,0.01,40679.0,40667.0,0.3]
[1646409927133,0.14477806,40692.0,40667.0,0.3]
[1646409927134,0.15636211,40699.0,40677.0,0.00522194]
[1646409927336,0.19015372,40705.0,40685.0,0.368614]
[1646409927535,0.19015372,40705.0,40689.0,0.368614]
[1646409927740,0.19015372,40705.0,40704.0,0.06391033]
[1646409927931,0.19015372,40705.0,40692.0,0.368614]
[1646409928133,0.19015372,40705.0,40699.0,0.21034845]
[1646409928332,0.19015372,40705.0,40698.0,0.1]
[1646409928532,0.14477806,40711.0,40699.0,0.05]
[1646409928786,0.02,40713.0,40706.0,0.0610368]
[1646409928986,0.16477806,40713.0,40706.0,0.0610368]
[1646409929187,0.02,40713.0,40706.0,0.0610368]
[1646409929388,0.02,40713.0,40708.0,0.368614]
[1646409929590,0.02,40713.0,40710.0,0.368614]
[1646409929787,0.02,40713.0,40711.0,0.05]
[1646409929989,0.05,40726.0,40713.0,0.662023]
[1646409930191,0.7067,40744.0,40713.0,0.662023]
[1646409930192,0.2498,40744.0,40717.0,1.4]
[1646409930390,0.2498,40744.0,40727.0,0.21934463]
[1646409930391,0.26418297,40738.0,40727.0,0.21934463]
[1646409930586,0.26418297,40738.0,40726.0,0.0452]
[1646409930786,0.26418297,40738.0,40731.0,0.1]
[1646409930988,0.26418297,40738.0,40726.0,0.1]
[1646409930989,0.14477806,40732.0,40726.0,0.1]
[1646409931187,0.14477806,40732.0,40726.0,0.50445529]
[1646409931389,0.14477806,40736.0,40727.0,0.36101494]
[1646409931588,0.69767937,40744.0,40727.0,0.01341051]
[1646409931589,0.4997,40744.0,40727.0,0.01341051]
[1646409931787,0.4997,40744.0,40736.0,0.1]
[1646409931988,0.2348,40744.0,40736.0,0.1]
[1646409932186,0.14477806,40749.0,40736.0,0.2]
[1646409932389,0.05,40754.0,40748.0,0.24659265]
[1646409932631,0.2951,40769.0,40751.0,0.368614]
[1646409932632,0.2499,40769.0,40751.0,0.368614]
[1646409932830,0.2499,40769.0,40761.0,0.01391817]
[1646409933031,0.2499,40769.0,40760.0,0.15]
[1646409933229,0.16452431,40763.0,40760.0,0.2]
[1646409933433,0.2499,40769.0,40762.0,0.20427705]
[1646409933628,0.498,40775.0,40760.0,0.1]
[1646409933831,0.05,40776.0,40760.0,0.1]
[1646409933832,0.19797937,40772.0,40760.0,0.05]
[1646409934029,0.3,40771.0,40754.0,0.1]
[1646409934230,0.19797937,40772.0,40754.0,0.1]
[1646409934231,0.3999,40772.0,40754.0,0.1]
[1646409934430,0.19797937,40770.0,40754.0,0.1]
[1646409934629,0.25434161,40771.0,40756.0,0.25025308]
[1646409934630,0.22928834,40762.0,40756.0,0.25025308]
[1646409934829,0.25,40774.0,40756.0,0.25025308]
[1646409934830,0.44797937,40775.0,40756.0,0.05]
[1646409935032,0.05,40776.0,40756.0,0.05]
[1646409935235,0.15,40764.0,40739.0,0.01265873]
[1646409935434,0.05,40776.0,40738.0,0.48783302]
[1646409935435,0.19797937,40756.0,40740.0,0.0452]
[1646409935640,0.19797937,40751.0,40740.0,0.0452]
[1646409935836,0.22418931,40741.0,40736.0,0.3]
[1646409936031,0.19797937,40750.0,40743.0,0.06212957]
[1646409936278,0.19797937,40750.0,40731.0,0.23499996]
[1646409936279,0.14,40746.0,40731.0,0.23499996]
[1646409936480,0.19797937,40750.0,40731.0,0.23499996]
[1646409936681,0.44797937,40754.0,40731.0,0.24792105]
[1646409936878,0.3,40755.0,40731.0,0.23499996]
[1646409937080,0.21091568,40744.0,40726.0,0.01357438]
[1646409937280,0.21091568,40744.0,40737.0,0.05512221]
[1646409937580,0.21091568,40744.0,40722.0,0.20500334]
[1646409937778,0.21091568,40744.0,40720.0,0.01234167]
[1646409937779,0.21091568,40744.0,40731.0,0.1]
[1646409937982,0.21091568,40744.0,40720.0,0.01234167]
[1646409937983,0.25,40741.0,40720.0,0.18171877]
[1646409938285,0.25,40741.0,40710.0,0.4536]
[1646409938286,0.23013124,40732.0,40713.0,0.001]
[1646409938480,0.3,40731.0,40720.0,0.06480299]
[1646409938680,0.23013124,40732.0,40713.0,0.001]
[1646409938882,0.23013124,40732.0,40715.0,0.01408022]
[1646409939083,0.23013124,40732.0,40720.0,0.56165589]
[1646409939084,0.25,40721.0,40720.0,0.56165589]
[1646409939279,0.23013124,40732.0,40720.0,0.56165589]
[1646409939280,0.19797937,40730.0,40720.0,0.30513393]
[1646409939482,0.44797937,40742.0,40721.0,0.23838189]
[1646409939681,0.3,40747.0,40720.0,0.31810716]
[1646409939682,0.35,40747.0,40720.0,0.31810716]
[1646409940032,0.4528,40750.0,40727.0,0.15]
[1646409940222,0.4528,40750.0,40742.0,0.2974984]
[1646409940423,0.2499,40756.0,40743.0,0.368614]
[1646409940625,0.7580679,40771.0,40744.0,0.3]
[1646409940833,0.01,40779.0,40762.0,0.368614]
[1646409941026,0.01,40779.0,40763.0,0.668614]
[1646409941226,0.01,40779.0,40772.0,0.31751574]
[1646409941425,0.01,40779.0,40772.0,0.33091776]
[1646409941624,0.01,40779.0,40772.0,0.43091776]
[1646409941823,0.2499,40786.0,40774.0,1.268614]
[1646409942026,0.05,40789.0,40776.0,0.01372537]
[1646409942226,0.3,40788.0,40779.0,0.1]
[1646409942424,0.23152132,40783.0,40774.0,0.1]
[1646409942625,0.23152132,40783.0,40774.0,0.05]
[1646409942827,0.23152132,40783.0,40773.0,0.05]
[1646409943225,0.05,40792.0,40782.0,0.16474503]
[1646409943429,0.0011,40799.0,40784.0,0.01298475]